[Event "Early-Titled-Tuesday-Blitz-September-05-2023"]
[Site "Chess.com"]
[Date "2023.09.05"]
[Round "2"]
[White "djano"]
[Black "Byniolus"]
[Result "0-1"]
[WhiteElo "2574"]
[BlackElo "2838"]
[TimeControl "180+1"]
[EndTime "8:17:33 PDT"]
[Termination "Byniolus won on time"]

1. Nc3 {[%clk 0:03:00.9]} 1... d5 {[%clk 0:03:00]} 2. d4 {[%clk 0:03:00.3]} 2...
Nf6 {[%clk 0:02:58.6]} 3. Bf4 {[%clk 0:02:59.6]} 3... c6 {[%clk 0:02:57.9]} 4.
e3 {[%clk 0:02:58.6]} 4... Bf5 {[%clk 0:02:57.9]} 5. f3 {[%clk 0:02:51.5]} 5...
h6 {[%clk 0:02:56.2]} 6. g4 {[%clk 0:02:51]} 6... Bg6 {[%clk 0:02:50.5]} 7. h4
{[%clk 0:02:50.5]} 7... e6 {[%clk 0:02:48.6]} 8. Bd3 {[%clk 0:02:44.6]} 8...
Bxd3 {[%clk 0:02:46.2]} 9. Qxd3 {[%clk 0:02:45.5]} 9... Nbd7 {[%clk 0:02:38.1]}
10. Nge2 {[%clk 0:02:40.7]} 10... b5 {[%clk 0:02:34.2]} 11. O-O-O {[%clk
0:02:29.1]} 11... b4 {[%clk 0:02:25.8]} 12. Nb1 {[%clk 0:02:19]} 12... Qa5
{[%clk 0:02:24.5]} 13. g5 {[%clk 0:02:11.4]} 13... Nh5 {[%clk 0:02:20.5]} 14. g6
{[%clk 0:01:46.3]} 14... f5 {[%clk 0:02:05.7]} 15. e4 {[%clk 0:01:44.5]} 15...
fxe4 {[%clk 0:01:46]} 16. fxe4 {[%clk 0:01:43.9]} 16... Be7 {[%clk 0:01:43.7]}
17. Qh3 {[%clk 0:01:07.4]} 17... Nf8 {[%clk 0:01:40.1]} 18. Be5 {[%clk
0:01:02.4]} 18... dxe4 {[%clk 0:01:14.5]} 19. d5 {[%clk 0:00:40]} 19... cxd5
{[%clk 0:01:01.9]} 20. Nd4 {[%clk 0:00:39.9]} 20... Qb6 {[%clk 0:00:50.7]} 21.
Rhf1 {[%clk 0:00:35.1]} 21... Rg8 {[%clk 0:00:36.5]} 22. Rf2 {[%clk 0:00:19.1]}
22... Nxg6 {[%clk 0:00:25.6]} 23. Bh2 {[%clk 0:00:14.5]} 23... e5 {[%clk
0:00:20.6]} 24. Ne6 {[%clk 0:00:14.4]} 24... Ngf4 {[%clk 0:00:16.7]} 25. Qf5
{[%clk 0:00:11.9]} 25... Qxe6 {[%clk 0:00:15.2]} 26. Qxe6 {[%clk 0:00:06]} 26...
Nxe6 {[%clk 0:00:16.1]} 27. Bxe5 {[%clk 0:00:05.9]} 27... O-O-O {[%clk
0:00:14.5]} 28. Rf7 {[%clk 0:00:04.6]} 28... Rd7 {[%clk 0:00:11.3]} 29. Nd2
{[%clk 0:00:04.3]} 29... e3 {[%clk 0:00:08.3]} 30. Nf3 {[%clk 0:00:04.1]} 30...
Re8 {[%clk 0:00:05.1]} 31. Re1 {[%clk 0:00:03.2]} 31... Bc5 {[%clk 0:00:05.1]}
32. Rxd7 {[%clk 0:00:01.8]} 32... Kxd7 {[%clk 0:00:06]} 33. c3 {[%clk
0:00:01.3]} 33... bxc3 {[%clk 0:00:05.7]} 34. bxc3 {[%clk 0:00:02.2]} 34... Nef4
{[%clk 0:00:04.9]} 0-1

[Event "Early-Titled-Tuesday-Blitz-September-05-2023"]
[Site "Chess.com"]
[Date "2023.09.05"]
[Round "2"]
[White "Casablanca"]
[Black "InadaC"]
[Result "1-0"]
[WhiteElo "2698"]
[BlackElo "1654"]
[TimeControl "180+1"]
[EndTime "8:17:33 PDT"]
[Termination "Casablanca won by resignation"]

1. e4 {[%clk 0:03:00.9]} 1... e6 {[%clk 0:02:58.6]} 2. d4 {[%clk 0:02:53.8]}
2... d5 {[%clk 0:02:56.6]} 3. Nd2 {[%clk 0:02:51.5]} 3... c5 {[%clk 0:02:54]} 4.
exd5 {[%clk 0:02:48.9]} 4... exd5 {[%clk 0:02:49.9]} 5. Ngf3 {[%clk 0:02:49.7]}
5... Nf6 {[%clk 0:02:46.6]} 6. Bb5+ {[%clk 0:02:48.9]} 6... Bd7 {[%clk
0:02:46.2]} 7. Bxd7+ {[%clk 0:02:44.2]} 7... Nbxd7 {[%clk 0:02:45.2]} 8. O-O
{[%clk 0:02:45.1]} 8... Be7 {[%clk 0:02:43]} 9. Re1 {[%clk 0:02:44.5]} 9... O-O
{[%clk 0:02:42.5]} 10. dxc5 {[%clk 0:02:44.5]} 10... Nxc5 {[%clk 0:02:42.4]} 11.
Nb3 {[%clk 0:02:45.1]} 11... Nce4 {[%clk 0:02:42]} 12. Be3 {[%clk 0:02:43.8]}
12... Re8 {[%clk 0:02:42]} 13. c3 {[%clk 0:02:43.1]} 13... a5 {[%clk 0:02:39]}
14. a4 {[%clk 0:02:41.4]} 14... Qc7 {[%clk 0:02:29.6]} 15. h3 {[%clk 0:02:40.5]}
15... h6 {[%clk 0:02:26.8]} 16. Nbd4 {[%clk 0:02:40.7]} 16... Bc5 {[%clk
0:02:04.1]} 17. Qb3 {[%clk 0:02:34.5]} 17... b6 {[%clk 0:02:01.8]} 18. Rad1
{[%clk 0:02:33.9]} 18... Rad8 {[%clk 0:02:01.4]} 19. Nb5 {[%clk 0:02:33.9]}
19... Qc8 {[%clk 0:01:57.4]} 20. Nfd4 {[%clk 0:02:18.8]} 20... Re5 {[%clk
0:01:48.9]} 21. Na7 {[%clk 0:02:11.2]} 21... Qb7 {[%clk 0:01:33.5]} 22. Nac6
{[%clk 0:02:08.3]} 22... Rde8 {[%clk 0:01:33.5]} 23. Nxe5 {[%clk 0:02:08.3]}
23... Rxe5 {[%clk 0:01:33.7]} 24. Nf3 {[%clk 0:02:08.9]} 24... Re6 {[%clk
0:01:29]} 25. Bxc5 {[%clk 0:02:07.2]} 25... Nxc5 {[%clk 0:01:29.9]} 26. Qb5
{[%clk 0:02:05.9]} 26... Rxe1+ {[%clk 0:01:27.9]} 27. Rxe1 {[%clk 0:02:04.8]}
27... Nfe4 {[%clk 0:01:28.8]} 28. Nd4 {[%clk 0:01:53.7]} 28... g6 {[%clk
0:01:21.9]} 29. Nb3 {[%clk 0:01:39.5]} 29... Nxb3 {[%clk 0:01:17.5]} 30. Qxb3
{[%clk 0:01:38.3]} 30... Nc5 {[%clk 0:01:17.3]} 31. Qb5 {[%clk 0:01:37.7]} 31...
Qc7 {[%clk 0:01:15.4]} 32. Qe8+ {[%clk 0:01:36.4]} 32... Kg7 {[%clk 0:01:14.9]}
33. Qe5+ {[%clk 0:01:35.8]} 33... Qxe5 {[%clk 0:01:15.1]} 34. Rxe5 {[%clk
0:01:36.6]} 34... Nxa4 {[%clk 0:01:14.2]} 35. Rxd5 {[%clk 0:01:31]} 35... Nxb2
{[%clk 0:01:13.9]} 36. Rb5 {[%clk 0:01:26.3]} 36... Na4 {[%clk 0:01:13.8]} 37.
c4 {[%clk 0:01:20]} 37... Kf6 {[%clk 0:01:13.2]} 38. f4 {[%clk 0:01:20]} 38...
Ke6 {[%clk 0:01:13.6]} 39. Kf2 {[%clk 0:01:18.4]} 39... Kd6 {[%clk 0:01:14.1]}
40. Ke3 {[%clk 0:01:18.1]} 40... Kc6 {[%clk 0:01:13.8]} 41. Kd4 {[%clk
0:01:18.5]} 41... Nc5 {[%clk 0:01:12]} 42. Rb1 {[%clk 0:01:12.1]} 42... a4
{[%clk 0:01:05.5]} 43. Ke5 {[%clk 0:01:11.9]} 43... Nd3+ {[%clk 0:01:03.2]} 44.
Ke4 {[%clk 0:01:08]} 44... Nc5+ {[%clk 0:01:02.3]} 45. Ke5 {[%clk 0:01:07.3]}
45... Nd3+ {[%clk 0:01:02.3]} 46. Ke4 {[%clk 0:00:43.3]} 46... Nc5+ {[%clk
0:01:00.8]} 47. Ke3 {[%clk 0:00:41.5]} 47... Nb3 {[%clk 0:00:58.8]} 48. Kd3
{[%clk 0:00:36.2]} 48... Nc5+ {[%clk 0:00:47.2]} 49. Kc3 {[%clk 0:00:35.5]}
49... f6 {[%clk 0:00:43.3]} 50. Re1 {[%clk 0:00:29.9]} 50... Kd6 {[%clk
0:00:42.5]} 51. Re8 {[%clk 0:00:27.6]} 51... Ne6 {[%clk 0:00:42.4]} 52. g3
{[%clk 0:00:26.7]} 52... h5 {[%clk 0:00:40.3]} 53. Kb4 {[%clk 0:00:23.6]} 53...
Nc5 {[%clk 0:00:36]} 54. Rg8 {[%clk 0:00:22.5]} 54... Nd3+ {[%clk 0:00:35.4]}
55. Kxa4 {[%clk 0:00:22.1]} 55... g5 {[%clk 0:00:33.5]} 56. fxg5 {[%clk
0:00:23]} 56... fxg5 {[%clk 0:00:33.5]} 57. Rxg5 {[%clk 0:00:23.9]} 57... Ne5
{[%clk 0:00:33.7]} 58. Rxe5 {[%clk 0:00:21.3]} 58... Kxe5 {[%clk 0:00:33.7]} 59.
Kb5 {[%clk 0:00:22]} 1-0

[Event "Early-Titled-Tuesday-Blitz-September-05-2023"]
[Site "Chess.com"]
[Date "2023.09.05"]
[Round "2"]
[White "jeetjain"]
[Black "FGHSMN"]
[Result "0-1"]
[WhiteElo "2613"]
[BlackElo "2929"]
[TimeControl "180+1"]
[EndTime "8:17:34 PDT"]
[Termination "FGHSMN won by resignation"]

1. Nf3 {[%clk 0:03:00.9]} 1... d5 {[%clk 0:02:59.5]} 2. g3 {[%clk 0:03:00.1]}
2... Nc6 {[%clk 0:02:59.5]} 3. d4 {[%clk 0:03:00]} 3... Bf5 {[%clk 0:02:59.9]}
4. Bg2 {[%clk 0:03:00.1]} 4... Nb4 {[%clk 0:03:00.5]} 5. Na3 {[%clk 0:02:58.7]}
5... e6 {[%clk 0:03:00.8]} 6. O-O {[%clk 0:02:58.2]} 6... Nf6 {[%clk 0:03:01.3]}
7. c3 {[%clk 0:02:55.8]} 7... Nc6 {[%clk 0:03:00.8]} 8. Nb1 {[%clk 0:02:55.6]}
8... Bd6 {[%clk 0:02:58.9]} 9. Bf4 {[%clk 0:02:47]} 9... O-O {[%clk 0:02:54]}
10. Bxd6 {[%clk 0:02:46.5]} 10... cxd6 {[%clk 0:02:53.4]} 11. Nbd2 {[%clk
0:02:45.7]} 11... h6 {[%clk 0:02:47.4]} 12. Re1 {[%clk 0:02:41.6]} 12... a5
{[%clk 0:02:46.3]} 13. a4 {[%clk 0:02:37.7]} 13... e5 {[%clk 0:02:23.4]} 14. e3
{[%clk 0:02:25.2]} 14... Bd3 {[%clk 0:02:18]} 15. h3 {[%clk 0:02:11.2]} 15...
Qc7 {[%clk 0:02:01.8]} 16. Qb3 {[%clk 0:02:06.2]} 16... e4 {[%clk 0:01:57]} 17.
Nh2 {[%clk 0:02:03]} 17... b5 {[%clk 0:01:43]} 18. Bf1 {[%clk 0:01:59.8]} 18...
Bc4 {[%clk 0:01:38.9]} 19. Qc2 {[%clk 0:01:52.9]} 19... Bxf1 {[%clk 0:01:33.9]}
20. Nhxf1 {[%clk 0:01:52.4]} 20... Nb4 {[%clk 0:01:33.3]} 21. Qb3 {[%clk
0:01:43.4]} 21... Nd3 {[%clk 0:01:33.5]} 22. Reb1 {[%clk 0:01:41.5]} 22... Qd7
{[%clk 0:01:25.8]} 23. Kg2 {[%clk 0:01:23.1]} 23... bxa4 {[%clk 0:01:17.6]} 24.
Qxa4 {[%clk 0:01:19.9]} 24... Qf5 {[%clk 0:01:17.9]} 25. f4 {[%clk 0:01:10.5]}
25... exf3+ {[%clk 0:01:07.6]} 26. Nxf3 {[%clk 0:01:10.6]} 26... Ne4 {[%clk
0:01:08.5]} 27. N1h2 {[%clk 0:00:48]} 27... Qg6 {[%clk 0:00:34.3]} 28. g4 {[%clk
0:00:38.2]} 28... f5 {[%clk 0:00:34.2]} 29. Qc2 {[%clk 0:00:37.4]} 29... fxg4
{[%clk 0:00:32.6]} 30. hxg4 {[%clk 0:00:35.7]} 30... Ng5 {[%clk 0:00:30.2]} 31.
Qb3 {[%clk 0:00:09]} 31... Nxf3 {[%clk 0:00:27.3]} 32. Qxd5+ {[%clk 0:00:07.9]}
32... Kh8 {[%clk 0:00:27.9]} 33. Nxf3 {[%clk 0:00:07.8]} 33... Qxg4+ {[%clk
0:00:28.5]} 34. Kh2 {[%clk 0:00:07.3]} 34... Rxf3 {[%clk 0:00:28.6]} 35. Qxa8+
{[%clk 0:00:07.2]} 35... Kh7 {[%clk 0:00:29.2]} 36. Qxf3 {[%clk 0:00:07.8]}
36... Qxf3 {[%clk 0:00:30]} 37. Rxa5 {[%clk 0:00:08]} 37... Nf2 {[%clk
0:00:27.2]} 38. b4 {[%clk 0:00:05.2]} 38... Ng4+ {[%clk 0:00:27.3]} 0-1

[Event "Early-Titled-Tuesday-Blitz-September-05-2023"]
[Site "Chess.com"]
[Date "2023.09.05"]
[Round "2"]
[White "topin8"]
[Black "KejJaj"]
[Result "1-0"]
[WhiteElo "2474"]
[BlackElo "2206"]
[TimeControl "180+1"]
[EndTime "8:17:35 PDT"]
[Termination "topin8 won by resignation"]

1. Nf3 {[%clk 0:03:00.9]} 1... f5 {[%clk 0:02:59.2]} 2. g3 {[%clk 0:03:00.8]}
2... Nf6 {[%clk 0:02:59.5]} 3. Bg2 {[%clk 0:03:01.7]} 3... e6 {[%clk 0:02:59.9]}
4. O-O {[%clk 0:03:02.6]} 4... d5 {[%clk 0:02:59.9]} 5. c4 {[%clk 0:03:03.5]}
5... c6 {[%clk 0:02:52.8]} 6. b3 {[%clk 0:03:01.3]} 6... Bd6 {[%clk 0:02:33.9]}
7. Bb2 {[%clk 0:03:00.8]} 7... O-O {[%clk 0:02:32.6]} 8. d3 {[%clk 0:02:59.7]}
8... Qe7 {[%clk 0:02:19.7]} 9. Nbd2 {[%clk 0:02:46.6]} 9... e5 {[%clk
0:02:13.1]} 10. cxd5 {[%clk 0:02:41.4]} 10... cxd5 {[%clk 0:02:12.6]} 11. e4
{[%clk 0:02:36.9]} 11... dxe4 {[%clk 0:02:02.2]} 12. dxe4 {[%clk 0:02:36.1]}
12... f4 {[%clk 0:02:02.3]} 13. Nc4 {[%clk 0:02:29.6]} 13... Rd8 {[%clk
0:01:50.5]} 14. Nxd6 {[%clk 0:02:26.6]} 14... Rxd6 {[%clk 0:01:49.9]} 15. Qe2
{[%clk 0:01:55.6]} 15... Nc6 {[%clk 0:01:33.2]} 16. Ba3 {[%clk 0:01:53.5]} 16...
Bg4 {[%clk 0:01:14]} 17. Bxd6 {[%clk 0:01:35.8]} 17... Qxd6 {[%clk 0:01:13.5]}
18. Qc4+ {[%clk 0:01:30.7]} 18... Be6 {[%clk 0:01:09.3]} 19. Qe2 {[%clk
0:01:30.5]} 19... Bg4 {[%clk 0:01:04.5]} 20. gxf4 {[%clk 0:00:58.5]} 20... Nd4
{[%clk 0:00:58.1]} 21. Qc4+ {[%clk 0:00:55.1]} 21... Be6 {[%clk 0:00:55.3]} 22.
Qd3 {[%clk 0:00:41.2]} 22... Nxf3+ {[%clk 0:00:44.5]} 23. Qxf3 {[%clk
0:00:42.1]} 23... exf4 {[%clk 0:00:29.8]} 24. h3 {[%clk 0:00:20.2]} 24... Qe5
{[%clk 0:00:25.8]} 25. Rac1 {[%clk 0:00:20.3]} 25... Qg5 {[%clk 0:00:21.6]} 26.
b4 {[%clk 0:00:18.8]} 26... Rf8 {[%clk 0:00:18]} 27. Rc5 {[%clk 0:00:18.7]}
27... Qg6 {[%clk 0:00:17.6]} 28. Qxf4 {[%clk 0:00:18.2]} 28... Nh5 {[%clk
0:00:14.5]} 29. Qg5 {[%clk 0:00:17.8]} 29... Qxg5 {[%clk 0:00:11.2]} 30. Rxg5
{[%clk 0:00:18.7]} 30... Nf6 {[%clk 0:00:11.7]} 31. Rd1 {[%clk 0:00:13.8]} 31...
a6 {[%clk 0:00:11.6]} 32. Rc5 {[%clk 0:00:13.6]} 32... Bxa2 {[%clk 0:00:11.2]}
33. e5 {[%clk 0:00:13.6]} 33... Nh5 {[%clk 0:00:10.8]} 34. e6 {[%clk 0:00:12]}
34... Nf4 {[%clk 0:00:11.3]} 35. e7 {[%clk 0:00:12.1]} 35... Re8 {[%clk
0:00:10.4]} 36. Rd8 {[%clk 0:00:12.4]} 36... Bf7 {[%clk 0:00:10.7]} 37. Rcc8
{[%clk 0:00:12.6]} 37... Ne2+ {[%clk 0:00:07.9]} 38. Kf1 {[%clk 0:00:12.3]}
38... Nf4 {[%clk 0:00:05.8]} 39. Rxe8+ {[%clk 0:00:12.2]} 39... Bxe8 {[%clk
0:00:05.9]} 40. Rxe8+ {[%clk 0:00:13.1]} 40... Kf7 {[%clk 0:00:06.6]} 41. Rf8+
{[%clk 0:00:13.6]} 41... Kxe7 {[%clk 0:00:06.9]} 42. Rxf4 {[%clk 0:00:14.5]} 1-0

[Event "Early-Titled-Tuesday-Blitz-September-05-2023"]
[Site "Chess.com"]
[Date "2023.09.05"]
[Round "2"]
[White "KVAIDAN"]
[Black "masterofpuppets2"]
[Result "0-1"]
[WhiteElo "2209"]
[BlackElo "2474"]
[TimeControl "180+1"]
[EndTime "8:17:38 PDT"]
[Termination "masterofpuppets2 won by resignation"]

1. f4 {[%clk 0:02:54.1]} 1... d5 {[%clk 0:02:58.4]} 2. Nf3 {[%clk 0:02:54.4]}
2... g6 {[%clk 0:02:59]} 3. e3 {[%clk 0:02:48]} 3... Bg7 {[%clk 0:02:59.2]} 4.
Be2 {[%clk 0:02:47.7]} 4... Nf6 {[%clk 0:02:59.6]} 5. O-O {[%clk 0:02:34.2]}
5... O-O {[%clk 0:02:59.5]} 6. d3 {[%clk 0:02:33.9]} 6... c5 {[%clk 0:02:59.5]}
7. Kh1 {[%clk 0:02:33.9]} 7... Nc6 {[%clk 0:02:59.6]} 8. a4 {[%clk 0:02:34.6]}
8... Qc7 {[%clk 0:02:58.3]} 9. Nc3 {[%clk 0:02:34.5]} 9... a6 {[%clk 0:02:56.3]}
10. e4 {[%clk 0:02:34.4]} 10... dxe4 {[%clk 0:02:50]} 11. dxe4 {[%clk
0:02:34.3]} 11... Rd8 {[%clk 0:02:50.2]} 12. Qe1 {[%clk 0:02:34.2]} 12... Nd4
{[%clk 0:02:50.1]} 13. Bd1 {[%clk 0:02:33.6]} 13... Be6 {[%clk 0:02:37.2]} 14.
e5 {[%clk 0:02:26.6]} 14... Nd5 {[%clk 0:02:30.4]} 15. Ng5 {[%clk 0:02:26.7]}
15... Bf5 {[%clk 0:02:19.8]} 16. Nxd5 {[%clk 0:02:15.5]} 16... Rxd5 {[%clk
0:02:20.7]} 17. Qf2 {[%clk 0:02:14.6]} 17... h6 {[%clk 0:02:15.9]} 18. Nf3
{[%clk 0:02:03.7]} 18... Rad8 {[%clk 0:02:07.1]} 19. c3 {[%clk 0:02:03.5]} 19...
Nxf3 {[%clk 0:01:53.2]} 20. Bxf3 {[%clk 0:02:02.5]} 20... R5d7 {[%clk
0:01:51.7]} 21. Be3 {[%clk 0:02:01.4]} 21... b6 {[%clk 0:01:46.3]} 22. a5 {[%clk
0:02:01.7]} 22... bxa5 {[%clk 0:01:44.9]} 23. Bxc5 {[%clk 0:02:01.4]} 23... Bd3
{[%clk 0:01:43.4]} 24. Bb6 {[%clk 0:01:58.4]} 24... Qb8 {[%clk 0:01:40.4]} 25.
Rfd1 {[%clk 0:01:51.8]} 25... Rc8 {[%clk 0:01:39.2]} 26. Be4 {[%clk 0:01:35.6]}
26... Bb5 {[%clk 0:01:29.6]} 27. e6 {[%clk 0:01:29.5]} 27... fxe6 {[%clk
0:01:28.1]} 28. Rxd7 {[%clk 0:01:26.8]} 28... Bxd7 {[%clk 0:01:27.8]} 29. Bxg6
{[%clk 0:01:27.4]} 29... Rf8 {[%clk 0:01:27.7]} 30. Be3 {[%clk 0:01:21.8]} 30...
Qb5 {[%clk 0:01:19.4]} 31. Qd2 {[%clk 0:01:16.3]} 31... Bc6 {[%clk 0:01:18.2]}
32. Bd3 {[%clk 0:01:02]} 32... Qb7 {[%clk 0:01:06.2]} 33. Rxa5 {[%clk
0:00:59.9]} 33... Rd8 {[%clk 0:01:06.1]} 34. Bh7+ {[%clk 0:00:51.9]} 34... Kxh7
{[%clk 0:01:06]} 35. Qxd8 {[%clk 0:00:52]} 35... Bxg2+ {[%clk 0:01:06.8]} 36.
Kg1 {[%clk 0:00:51.7]} 36... Qf3 {[%clk 0:01:07.5]} 37. Qd3+ {[%clk 0:00:44.9]}
37... Kg8 {[%clk 0:01:05.9]} 38. Rxa6 {[%clk 0:00:37.5]} 38... Bh3 {[%clk
0:01:00.7]} 39. Ra8+ {[%clk 0:00:16.8]} 39... Qxa8 {[%clk 0:00:57.7]} 40. Kf2
{[%clk 0:00:15.8]} 40... Qg2+ {[%clk 0:00:56.9]} 41. Ke1 {[%clk 0:00:16.3]}
41... Qxb2 {[%clk 0:00:53.2]} 42. Bd4 {[%clk 0:00:13.9]} 42... Qc1+ {[%clk
0:00:48.8]} 43. Kf2 {[%clk 0:00:12.1]} 43... Qxf4+ {[%clk 0:00:46.8]} 44. Ke1
{[%clk 0:00:12.4]} 44... Bf5 {[%clk 0:00:43.8]} 45. Qg3 {[%clk 0:00:08.6]} 45...
Qxg3+ {[%clk 0:00:43.4]} 46. hxg3 {[%clk 0:00:08.8]} 46... Bxd4 {[%clk
0:00:44.1]} 47. cxd4 {[%clk 0:00:09.3]} 47... Kf7 {[%clk 0:00:44.8]} 48. Kf2
{[%clk 0:00:08.5]} 48... Kg6 {[%clk 0:00:45.3]} 49. Ke3 {[%clk 0:00:09.2]} 49...
Kg5 {[%clk 0:00:45.6]} 50. Kf3 {[%clk 0:00:09.7]} 50... h5 {[%clk 0:00:45.8]}
51. Ke3 {[%clk 0:00:09.8]} 51... Kg4 {[%clk 0:00:46.1]} 52. Kf2 {[%clk
0:00:10.3]} 52... Be4 {[%clk 0:00:45.9]} 53. Ke3 {[%clk 0:00:10.4]} 53... Bd5
{[%clk 0:00:46.5]} 54. Kf2 {[%clk 0:00:10.5]} 54... Kh3 {[%clk 0:00:47.1]} 55.
Kg1 {[%clk 0:00:10.4]} 55... Kxg3 {[%clk 0:00:47]} 56. Kf1 {[%clk 0:00:10.3]}
56... h4 {[%clk 0:00:47.7]} 0-1

[Event "Early-Titled-Tuesday-Blitz-September-05-2023"]
[Site "Chess.com"]
[Date "2023.09.05"]
[Round "2"]
[White "Chemim21"]
[Black "WelshTiger"]
[Result "0-1"]
[WhiteElo "2275"]
[BlackElo "2496"]
[TimeControl "180+1"]
[EndTime "8:17:40 PDT"]
[Termination "WelshTiger won on time"]

1. e4 {[%clk 0:03:00.9]} 1... c6 {[%clk 0:02:59.1]} 2. d4 {[%clk 0:02:59.6]}
2... d5 {[%clk 0:02:59.6]} 3. exd5 {[%clk 0:02:58.9]} 3... cxd5 {[%clk 0:02:58]}
4. Bd3 {[%clk 0:02:59.2]} 4... Nc6 {[%clk 0:02:57.7]} 5. c3 {[%clk 0:02:58.9]}
5... Qc7 {[%clk 0:02:57.2]} 6. Nf3 {[%clk 0:02:47.5]} 6... Bg4 {[%clk
0:02:56.6]} 7. O-O {[%clk 0:02:44.7]} 7... e6 {[%clk 0:02:56.6]} 8. Re1 {[%clk
0:02:44.7]} 8... Nf6 {[%clk 0:02:55.6]} 9. h3 {[%clk 0:02:44.1]} 9... Bh5 {[%clk
0:02:55.5]} 10. Bg5 {[%clk 0:02:35.7]} 10... Bd6 {[%clk 0:02:53.1]} 11. Nbd2
{[%clk 0:02:33]} 11... h6 {[%clk 0:02:47.7]} 12. Bxf6 {[%clk 0:02:29.9]} 12...
gxf6 {[%clk 0:02:48.6]} 13. g4 {[%clk 0:02:28]} 13... Rg8 {[%clk 0:02:42.6]} 14.
Kf1 {[%clk 0:02:21.8]} 14... Bg6 {[%clk 0:02:42]} 15. Qe2 {[%clk 0:02:05.6]}
15... O-O-O {[%clk 0:02:38.6]} 16. b4 {[%clk 0:02:04.3]} 16... h5 {[%clk
0:02:35]} 17. Bxg6 {[%clk 0:01:57.8]} 17... Rxg6 {[%clk 0:02:35.9]} 18. gxh5
{[%clk 0:01:51.2]} 18... Rh6 {[%clk 0:02:35.9]} 19. Ng1 {[%clk 0:01:27.9]} 19...
Rdh8 {[%clk 0:02:32.5]} 20. a4 {[%clk 0:01:23.7]} 20... e5 {[%clk 0:02:25.6]}
21. b5 {[%clk 0:01:19.5]} 21... Na5 {[%clk 0:02:25.7]} 22. dxe5 {[%clk
0:01:11.2]} 22... fxe5 {[%clk 0:02:25.6]} 23. c4 {[%clk 0:01:00]} 23... dxc4
{[%clk 0:02:00.7]} 24. Nxc4 {[%clk 0:00:56.4]} 24... Nxc4 {[%clk 0:01:56.7]} 25.
Rac1 {[%clk 0:00:56]} 25... Kb8 {[%clk 0:01:57]} 26. Rxc4 {[%clk 0:00:55.2]}
26... Qa5 {[%clk 0:01:49.6]} 27. Rec1 {[%clk 0:00:51.9]} 27... f5 {[%clk
0:01:29.6]} 28. Qd3 {[%clk 0:00:40.8]} 28... e4 {[%clk 0:01:09.3]} 29. Qd5
{[%clk 0:00:36.7]} 29... Bf4 {[%clk 0:01:08.6]} 30. R1c2 {[%clk 0:00:17.7]}
30... Qd8 {[%clk 0:01:01.2]} 31. Qxf5 {[%clk 0:00:15.2]} 31... Bd6 {[%clk
0:00:43.8]} 32. Rc8+ {[%clk 0:00:13.8]} 32... Qxc8 {[%clk 0:00:43.6]} 33. Rxc8+
{[%clk 0:00:13.7]} 33... Rxc8 {[%clk 0:00:44]} 34. Qxe4 {[%clk 0:00:12.4]} 34...
Rxh5 {[%clk 0:00:40.3]} 35. h4 {[%clk 0:00:11.5]} 35... Rf8 {[%clk 0:00:34.4]}
36. Nf3 {[%clk 0:00:11.4]} 36... Rhf5 {[%clk 0:00:34.5]} 37. Qe6 {[%clk
0:00:09.5]} 37... Bc7 {[%clk 0:00:32]} 38. Ng5 {[%clk 0:00:03.8]} 38... Rxf2+
{[%clk 0:00:31.8]} 39. Ke1 {[%clk 0:00:04.2]} 39... Ba5+ {[%clk 0:00:31.3]} 40.
Kd1 {[%clk 0:00:03.9]} 40... Rd8+ {[%clk 0:00:29.4]} 41. Kc1 {[%clk 0:00:04]}
41... Bc3 {[%clk 0:00:18.9]} 42. Qe7 {[%clk 0:00:01.5]} 42... Bb2+ {[%clk
0:00:16.8]} 43. Kb1 {[%clk 0:00:01.3]} 43... Rd1+ {[%clk 0:00:17.6]} 0-1

[Event "Early-Titled-Tuesday-Blitz-September-05-2023"]
[Site "Chess.com"]
[Date "2023.09.05"]
[Round "2"]
[White "SchmakAttack"]
[Black "colegiodemadrid"]
[Result "0-1"]
[WhiteElo "2768"]
[BlackElo "2463"]
[TimeControl "180+1"]
[EndTime "8:17:42 PDT"]
[Termination "colegiodemadrid won by resignation"]

1. d4 {[%clk 0:03:00.9]} 1... Nf6 {[%clk 0:03:00.4]} 2. c4 {[%clk 0:03:01.1]}
2... g6 {[%clk 0:03:00.8]} 3. g3 {[%clk 0:02:56.8]} 3... Bg7 {[%clk 0:03:00.7]}
4. Bg2 {[%clk 0:02:57.2]} 4... O-O {[%clk 0:03:01.1]} 5. Nc3 {[%clk 0:02:57.5]}
5... d6 {[%clk 0:03:01.8]} 6. Nf3 {[%clk 0:02:57.4]} 6... Bf5 {[%clk 0:03:01.8]}
7. O-O {[%clk 0:02:52.6]} 7... Ne4 {[%clk 0:03:01.5]} 8. Qb3 {[%clk 0:02:53]}
8... Nxc3 {[%clk 0:02:58.8]} 9. bxc3 {[%clk 0:02:53.5]} 9... Bc8 {[%clk
0:02:54.5]} 10. e4 {[%clk 0:02:52.7]} 10... b6 {[%clk 0:02:52.5]} 11. Re1 {[%clk
0:02:45.4]} 11... c5 {[%clk 0:02:43.9]} 12. Bf4 {[%clk 0:02:35.1]} 12... Nc6
{[%clk 0:02:42.2]} 13. Rad1 {[%clk 0:02:25.6]} 13... Na5 {[%clk 0:02:36.8]} 14.
Qc2 {[%clk 0:02:23.3]} 14... Nxc4 {[%clk 0:02:29.4]} 15. e5 {[%clk 0:02:21.7]}
15... d5 {[%clk 0:02:17.9]} 16. dxc5 {[%clk 0:02:12]} 16... bxc5 {[%clk
0:02:18.6]} 17. e6 {[%clk 0:02:12.5]} 17... Bxe6 {[%clk 0:02:01.1]} 18. Rxe6
{[%clk 0:02:03.1]} 18... fxe6 {[%clk 0:02:01]} 19. Ng5 {[%clk 0:02:03.7]} 19...
Nb6 {[%clk 0:01:18.8]} 20. Nxe6 {[%clk 0:02:02]} 20... Qd7 {[%clk 0:01:19.3]}
21. Nxf8 {[%clk 0:01:25.9]} 21... Rxf8 {[%clk 0:01:20.2]} 22. Be3 {[%clk
0:01:13.7]} 22... d4 {[%clk 0:01:12.3]} 23. cxd4 {[%clk 0:01:10.9]} 23... cxd4
{[%clk 0:01:13.1]} 24. Qe4 {[%clk 0:00:54.9]} 24... e5 {[%clk 0:01:09.2]} 25.
Bg5 {[%clk 0:00:49.6]} 25... Qa4 {[%clk 0:01:02.3]} 26. Rc1 {[%clk 0:00:48.7]}
26... Qxa2 {[%clk 0:01:00.8]} 27. h4 {[%clk 0:00:38.1]} 27... Qxf2+ {[%clk
0:00:56.8]} 28. Kh2 {[%clk 0:00:38.8]} 28... Qf5 {[%clk 0:00:51.5]} 29. Qb7
{[%clk 0:00:38.4]} 29... h6 {[%clk 0:00:46.7]} 30. Bd2 {[%clk 0:00:31]} 30...
Rf7 {[%clk 0:00:32]} 31. Qb8+ {[%clk 0:00:31]} 31... Kh7 {[%clk 0:00:31.9]} 32.
Re1 {[%clk 0:00:25.9]} 32... Nc4 {[%clk 0:00:26.1]} 33. Bb4 {[%clk 0:00:20.6]}
33... Ne3 {[%clk 0:00:23.8]} 34. Re2 {[%clk 0:00:20.7]} 34... Nxg2 {[%clk
0:00:21.7]} 35. Rxg2 {[%clk 0:00:21.6]} 35... e4 {[%clk 0:00:22.2]} 36. Bd6
{[%clk 0:00:19.6]} 36... e3 {[%clk 0:00:18.3]} 37. Qe8 {[%clk 0:00:19.2]} 37...
Qd7 {[%clk 0:00:14.2]} 38. Qb8 {[%clk 0:00:17.1]} 38... d3 {[%clk 0:00:13.8]}
39. h5 {[%clk 0:00:16.6]} 39... gxh5 {[%clk 0:00:13.2]} 40. Bf4 {[%clk
0:00:15.9]} 40... d2 {[%clk 0:00:12.6]} 41. Qb1+ {[%clk 0:00:15.6]} 41... Qf5
{[%clk 0:00:13.3]} 42. Qd1 {[%clk 0:00:15.7]} 42... h4 {[%clk 0:00:12.3]} 43.
Bxe3 {[%clk 0:00:14.9]} 43... hxg3+ {[%clk 0:00:11.2]} 44. Kg1 {[%clk 0:00:15]}
44... Qf1+ {[%clk 0:00:10.7]} 0-1